bitfinex-derivatives/quotes_BNBF0:USTF0_20250211
["timestamp","ask_amount","ask_price","bid_price","bid_amount"]
[1739299280669,6.12263088,632.56,631.67,0.31662102]
[1739299280873,8.93724378,632.55,631.68,0.29058763]
[1739299281067,6.12263088,632.54,631.68,0.29058763]
[1739299281273,3.99834799,632.53,631.68,0.29058763]
[1739299281572,3.99834799,632.54,631.68,0.29058763]
[1739299281777,2.8146129,632.55,631.68,0.29058763]
[1739299282576,6.13598901,632.76,631.68,0.29058763]
[1739299282877,4.31442859,632.75,631.68,0.29058763]
[1739299283271,3.99834799,632.74,631.68,0.29058763]
[1739299283670,0.3160806,632.75,631.67,0.31662102]
[1739299283874,4.31442859,632.75,631.67,0.31662102]
[1739299284277,3.1306935,632.75,631.67,0.31662102]
[1739299286179,0.3160806,632.75,631.67,0.31662102]
[1739299291373,0.3160806,632.75,631.17,1.65167006]
[1739299291571,6.13566515,632.74,631.18,0.60755279]
[1739299291772,6.41088257,632.73,631.19,0.29068597]
[1739299291975,0.3160806,632.75,631.2,0.2907018]
[1739299291976,6.41090428,632.72,631.2,0.2907018]
[1739299292176,6.41090428,632.71,631.21,0.2907018]
[1739299292478,0.3160806,632.75,631.23,0.31684172]
[1739299292779,0.3160806,632.75,631.24,0.2907018]
[1739299292977,0.3160806,632.75,631.26,0.31682666]
[1739299293177,0.3160806,632.75,631.27,0.2907018]
[1739299293476,6.13295441,632.74,631.29,0.3168116]
[1739299293673,6.13295441,632.73,631.3,0.2907018]
[1739299293877,6.13295441,632.72,631.31,0.2907018]
[1739299294073,6.13295441,632.71,631.32,0.2907018]
[1739299294278,3.99588956,632.7,631.33,0.60749333]
[1739299294478,2.81189276,632.72,631.34,0.2907018]
[1739299294774,2.81189276,632.72,631.35,0.2907018]
[1739299294973,2.81189276,632.72,631.37,0.31677146]
[1739299295171,2.81189276,632.72,631.38,0.2907018]
[1739299295373,2.81189276,632.72,631.4,0.31675641]
[1739299295573,2.81189276,632.72,631.41,0.2907018]
[1739299295878,6.13154242,633.03,631.49,1.18086959]
[1739299296078,3.99506447,633.02,631.51,0.31670123]
[1739299296279,3.99506447,633.02,631.52,0.2907018]
[1739299296480,3.99506447,633.02,631.54,0.31668619]
[1739299296778,3.99506447,633.02,631.55,0.2907018]
[1739299296978,4.31101025,633.02,631.56,0.31667616]
[1739299297175,0.31594578,633.02,631.57,0.2907018]
[1739299297380,3.12783854,633.02,631.58,0.31666613]
[1739299297681,3.12783854,633.02,631.59,0.29051278]
[1739299297980,3.12783854,633.02,631.6,0.31665611]
[1739299298281,3.12783854,633.02,631.61,0.29051278]
[1739299298481,3.12783854,633.02,631.62,0.31664608]
[1739299298676,3.12783854,633.02,631.63,0.29051278]
[1739299298877,3.12783854,633.02,631.64,0.31663605]
[1739299299175,0.31594578,633.02,631.65,0.29051278]
[1739299299378,0.31594578,633.02,631.66,0.31662603]
[1739299299679,0.31594578,633.02,631.67,0.29051278]
[1739299302077,0.31594578,633.02,631.68,0.316616]
[1739299302280,0.31594578,633.02,631.69,0.29051278]
[1739299302474,0.31594578,633.02,631.7,0.31660598]
[1739299302675,0.31594578,633.02,631.71,0.29051278]
[1739299302873,0.31594578,633.02,631.72,0.31659596]
[1739299303079,0.31594578,633.02,631.73,0.29051278]
[1739299303480,0.31594578,633.02,631.74,0.31658593]
[1739299303780,0.31594578,633.02,631.75,0.29051278]
[1739299305475,0.31594578,633.02,631.76,0.31657591]
[1739299305677,2.81189276,633.39,631.77,0.29034216]
[1739299305872,0.3157662,633.38,631.79,0.31656088]
[1739299306077,0.3157662,633.38,631.8,0.29034216]
[1739299306277,0.3157662,633.38,631.82,0.31654585]
[1739299306574,0.3157662,633.38,631.83,0.29034216]
[1739299306774,0.3157662,633.38,631.85,0.31653082]
[1739299306981,0.3157662,633.38,631.86,0.29034216]
[1739299307175,0.3157662,633.38,631.87,0.3165208]
[1739299307378,0.3157662,633.38,631.88,0.29034216]
[1739299307579,0.3157662,633.38,631.89,0.31651078]
[1739299307779,0.3157662,633.38,631.9,0.29034216]
[1739299308076,0.3157662,633.38,631.91,0.31650076]
[1739299308479,0.3157662,633.38,631.92,0.29034216]
[1739299309677,0.3157662,633.38,631.93,0.31649075]
[1739299309878,0.3157662,633.38,631.94,0.29034216]
[1739299310082,0.3157662,633.38,631.95,0.31648073]
[1739299310383,0.3157662,633.38,631.96,0.29034216]
[1739299310983,0.3157662,633.38,631.97,0.31647071]
[1739299311183,0.3157662,633.38,631.98,0.29034216]
[1739299311379,0.3157662,633.38,631.99,0.3164607]
[1739299311579,0.3157662,633.38,632.0,0.29034216]
[1739299311885,0.3157662,633.38,632.01,0.31645068]
[1739299312086,0.3157662,633.38,632.02,0.29034216]
[1739299312286,0.3157662,633.38,632.03,0.31644067]
[1739299312589,0.3157662,633.38,632.04,0.29034216]
[1739299312887,0.3157662,633.38,632.05,0.31643066]
[1739299313081,0.3157662,633.38,632.06,0.29034216]
[1739299313279,0.3157662,633.38,632.07,0.31642064]
[1739299313483,0.3157662,633.38,632.08,0.29034216]
[1739299313686,0.3157662,633.38,632.09,0.31641063]
[1739299313882,0.3157662,633.38,632.1,0.29034216]
[1739299314181,0.3157662,633.38,632.11,0.31640062]
[1739299314489,0.3157662,633.38,632.12,0.29034216]
[1739299314787,0.3157662,633.38,632.13,0.60673277]
[1739299314988,0.3157662,633.38,632.14,0.60672777]
[1739299315189,0.3157662,633.38,632.15,0.60672276]
[1739299315390,0.3157662,633.38,632.16,0.29034216]
[1739299315590,0.3157662,633.38,632.17,0.29034216]
[1739299315790,0.3157662,633.38,632.18,0.60670775]
[1739299316090,0.3157662,633.38,632.19,0.60670274]
[1739299316292,0.3157662,633.38,631.61,0.61026337]
[1739299316293,0.3157662,633.38,632.2,0.31635558]
[1739299316590,0.3157662,633.38,632.21,0.29034216]
[1739299316787,0.3157662,633.38,632.22,0.31634557]
[1739299316993,0.3157662,633.38,632.23,0.29034216]
[1739299317192,0.3157662,633.38,632.24,0.31633556]
[1739299317493,0.3157662,633.38,632.25,0.29024716]
[1739299317693,0.3157662,633.38,631.6,1.18086959]
[1739299317694,0.3157662,633.38,632.26,0.60657272]
[1739299317991,0.3157662,633.38,632.27,0.60656771]
[1739299318293,0.3157662,633.38,632.28,0.29024716]
[1739299320992,0.3157662,633.38,632.27,0.31632055]
[1739299321291,0.3157662,633.38,632.28,0.29030708]
[1739299321793,0.27557946,633.37,632.28,0.29030708]
[1739299321992,0.31577617,633.36,632.28,0.29030708]
[1739299322994,0.27555981,633.35,632.28,0.29030708]
[1739299323595,0.31577617,633.36,632.28,0.29030708]
[1739299323791,0.2755674,633.35,632.28,0.29030708]
[1739299323987,0.2755674,633.35,631.65,0.61013588]
[1739299323988,0.2755674,633.35,631.66,0.29030708]
[1739299324189,0.2755674,633.35,631.68,0.316616]
[1739299324390,0.31578614,633.34,631.69,0.29030708]
[1739299324597,0.31578614,633.34,631.71,0.31660097]
[1739299324796,0.31578614,633.34,631.72,0.29030708]
[1739299324997,0.27560262,633.33,631.72,0.29030708]
[1739299325191,0.27560262,633.33,631.73,0.31659094]
[1739299325396,0.31579612,633.32,631.74,0.29030708]
[1739299325691,0.27558581,633.31,631.75,0.31658092]
[1739299325897,4.30503646,633.3,631.75,0.31658092]
[1739299326098,4.58062726,633.29,631.76,0.29030708]
[1739299326395,0.31582105,633.27,631.77,0.60687798]
[1739299326596,0.27558581,633.26,631.78,0.60687297]
[1739299326798,0.31583103,633.25,631.79,0.60686796]
[1739299326992,0.27558581,633.24,631.8,0.29030708]
[1739299327193,0.315841,633.23,631.81,0.29030708]
[1739299327391,0.27558581,633.22,631.81,0.29030708]
[1739299327597,0.31585098,633.21,631.8,0.29030708]
[1739299327897,0.27558581,633.2,631.8,0.29030708]
[1739299328692,0.27558581,633.2,631.81,0.29030708]
[1739299328891,0.31586095,633.19,631.81,0.29030708]
[1739299329094,0.27558581,633.18,631.8,0.29030708]
[1739299329294,0.27558581,633.18,631.81,0.29030708]
[1739299329496,0.31587093,633.17,631.8,0.29030708]
[1739299329699,0.27558581,633.16,631.81,0.29030708]
[1739299329995,0.31588091,633.15,631.82,0.29030708]
[1739299330193,0.27558581,633.14,631.8,0.29030708]
[1739299330391,0.31589089,633.13,631.8,0.29030708]
[1739299330594,0.27558581,633.12,631.8,0.29030708]
[1739299330792,0.31589089,633.13,631.8,0.29030708]
[1739299330997,0.31589089,633.13,631.79,0.31656088]
[1739299330998,0.31589089,633.13,631.81,0.29030708]
[1739299331193,0.31589089,633.13,631.79,0.31656088]
[1739299331194,0.31589089,633.13,631.8,0.29030708]
[1739299331499,0.2756441,633.12,631.79,0.31656088]
[1739299331797,0.2756441,633.12,631.8,0.29030708]
[1739299331999,0.31590087,633.11,631.81,0.29030708]
[1739299332196,0.2756441,633.1,631.82,0.29030708]
[1739299332397,0.31591084,633.09,631.83,0.29030708]
[1739299332593,0.31591084,633.09,631.84,0.29030708]
[1739299332791,0.31591084,633.09,631.81,0.29030708]
[1739299332996,0.31591084,633.09,631.82,0.29030708]
[1739299333397,0.31591084,633.09,631.83,0.29030708]
[1739299333598,0.31591084,633.09,631.8,0.29030708]
[1739299333798,0.31591084,633.09,631.81,0.90044296]
[1739299333999,0.31591084,633.09,631.8,0.29030708]
[1739299334199,0.31591084,633.09,631.81,0.29030708]
[1739299334397,0.31591084,633.09,631.8,0.29030708]
[1739299334601,0.31591084,633.09,631.81,0.29030708]
[1739299334797,0.31591084,633.09,631.8,0.29030708]
[1739299335299,0.31591084,633.09,631.81,0.29048861]
[1739299335500,0.27563043,633.08,631.8,0.29048861]
[1739299335700,0.31592083,633.07,631.8,0.29048861]
[1739299335896,0.27563043,633.06,631.8,0.29048861]
[1739299336100,0.31593081,633.05,631.8,0.29048861]
[1739299336301,0.27563043,633.04,631.8,0.29048861]
[1739299336500,0.31594079,633.03,631.8,0.29048861]
[1739299336698,0.27563043,633.02,631.8,0.29048861]
[1739299337003,0.31595077,633.01,631.8,0.29048861]
[1739299337504,0.31595077,633.01,631.81,0.29048861]
[1739299337804,0.31595077,633.01,631.82,0.29048861]
[1739299337998,0.31595077,633.01,631.83,0.29048861]
[1739299338198,0.31595077,633.01,631.8,0.29048861]
[1739299338398,0.31595077,633.01,631.81,0.29048861]
[1739299338705,0.31595077,633.01,631.82,0.29048861]
[1739299339005,0.31595077,633.01,631.83,0.29048861]
[1739299339204,0.31595077,633.01,631.84,0.29048861]
[1739299339404,0.31595077,633.01,631.85,0.60701943]
[1739299339702,0.31595077,633.01,631.8,0.61059812]
[1739299339703,0.31595077,633.01,631.86,1.21761254]
[1739299339900,0.31595077,633.01,631.87,0.29048861]
[1739299340102,0.31595077,633.01,631.86,0.31652581]
[1739299340103,0.31595077,633.01,631.88,0.29048861]
[1739299340303,0.31595077,633.01,631.89,0.29048861]
[1739299340497,0.31595077,633.01,631.86,0.31652581]
[1739299340498,0.31595077,633.01,631.9,0.29048861]
[1739299340902,0.31595077,633.01,631.91,0.29048861]
[1739299341302,0.31595077,633.01,631.92,0.29048861]
[1739299341503,0.31595077,633.01,631.9,0.29048861]
[1739299341705,0.31595077,633.01,631.91,0.29048861]
[1739299341910,0.31595077,633.01,631.87,0.29048861]
[1739299342501,0.31595077,633.01,631.86,0.31652581]
[1739299342704,0.27550453,633.0,631.86,0.31652581]
[1739299343607,0.27550453,633.0,631.31,1.17224586]
[1739299343808,0.27550453,633.0,631.32,0.60744259]
[1739299344010,0.27550453,633.0,631.33,0.29064604]
[1739299346415,3.98923037,632.99,631.33,0.29064604]
[1739299346616,0.27550453,633.0,631.34,0.29064604]
[1739299346815,0.27550453,632.99,631.35,0.29064604]
[1739299347116,0.27550453,632.98,631.36,0.29064604]
[1739299347414,4.2647349,632.97,631.37,0.29064604]
[1739299347612,3.98923037,632.96,631.38,0.31676644]
[1739299347816,0.31598571,632.94,631.39,0.29064604]
[1739299348119,6.38687703,632.93,631.4,0.29064604]
[1739299348419,6.38687703,632.92,631.41,0.29064604]
[1739299348615,6.1113725,632.91,631.41,0.29064604]
[1739299348816,6.38687703,632.9,631.42,0.29064604]
[1739299349016,6.38687703,632.89,631.43,0.29064604]
[1739299349217,6.38687703,632.88,631.44,0.60738238]
[1739299349416,6.38687703,632.87,631.45,0.29064604]
[1739299349618,6.42739816,632.86,631.45,0.31673133]
[1739299349920,4.58104521,632.85,631.46,0.29062619]
[1739299350218,4.26501456,632.84,631.47,0.29062619]
[1739299350411,4.5810552,632.83,631.48,0.29062619]
[1739299350616,4.58106019,632.82,631.49,0.60733746]
[1739299350812,0.59183482,632.81,631.5,0.29062619]
[1739299351018,0.59183981,632.8,631.51,0.29062619]
[1739299351215,0.59184481,632.79,631.52,0.29062619]
[1739299351413,0.5918498,632.78,631.53,0.29062619]
[1739299351618,0.27578419,632.77,631.54,0.29062619]
[1739299351819,0.31606561,632.78,631.55,0.29062619]
[1739299352120,0.31606561,632.78,631.56,0.29062619]
[1739299352313,0.31606561,632.78,631.5,0.29062619]
[1739299352519,0.31606561,632.78,631.51,0.29062619]
[1739299352816,0.31606561,632.78,631.52,0.29062619]
[1739299353120,0.31606561,632.78,631.53,0.29062619]
[1739299353320,0.31606561,632.78,631.54,0.29058182]
[1739299353520,0.31606561,632.78,631.55,0.29058182]
[1739299353821,0.31606561,632.78,631.56,0.29058182]
[1739299354115,0.31606561,632.78,631.57,0.29058182]
[1739299354315,0.31606561,632.78,631.58,0.29058182]
[1739299354621,0.31606561,632.78,631.59,0.29058182]
[1739299354821,0.31606561,632.78,631.5,0.29058182]
[1739299355020,0.31606561,632.78,631.6,0.29058182]
[1739299355218,0.31606561,632.78,631.61,0.29058182]
[1739299355415,0.31606561,632.78,631.52,0.29058182]
[1739299355616,0.31606561,632.78,631.51,0.31670123]
[1739299355819,0.31606561,632.78,631.52,0.29057543]
[1739299356017,0.31606561,632.78,631.53,0.31669121]
[1739299356217,0.31606561,632.78,631.54,0.29057543]
[1739299356416,0.31606561,632.78,631.55,0.31668118]
[1739299356617,0.31606561,632.78,631.56,0.29057543]
[1739299357020,0.31606561,632.78,631.57,0.31667115]
[1739299357226,0.31606561,632.78,631.58,0.29057543]
[1739299357724,0.31606561,632.78,631.59,0.31666112]
[1739299357927,0.31606561,632.78,631.6,0.29057543]
[1739299358124,0.31606561,632.78,631.61,0.31665109]
[1739299358325,0.31606561,632.78,631.62,0.29057543]
[1739299358524,0.31606561,632.78,631.63,0.31664107]
[1739299358724,0.31606561,632.78,631.64,0.29057543]
[1739299358926,0.31606561,632.78,631.65,0.31663104]
[1739299359126,0.31606561,632.78,631.66,0.29057543]
[1739299359926,0.31606561,632.78,631.67,0.31662102]
[1739299360121,0.31606561,632.78,631.68,0.29057543]
[1739299360323,0.31606561,632.78,631.69,0.31661099]
[1739299360821,0.31606561,632.78,631.7,0.29052151]
[1739299361027,0.31606561,632.78,631.7,0.60712749]
[1739299361222,0.31606561,632.78,631.71,0.29052151]
[1739299362527,0.31606561,632.78,631.72,0.31659596]
[1739299362725,0.31606561,632.78,631.73,0.29052151]
[1739299362926,0.31606561,632.78,631.74,0.31658593]
[1739299363126,0.31606561,632.78,631.75,0.29052151]
[1739299363323,0.31606561,632.78,631.76,0.31657591]
[1739299363726,0.31606561,632.78,631.77,0.29052151]
[1739299363926,0.31606561,632.78,631.77,0.60709241]
[1739299364229,0.31606561,632.78,631.78,0.29052151]
[1739299366524,0.31606561,632.78,631.77,0.3165709]
[1739299367932,0.31606561,632.78,631.78,0.29055201]
[1739299371537,0.31606561,632.78,631.77,0.3165709]
[1739299371734,0.31606561,632.78,631.78,0.29057608]
[1739299375638,0.31606561,632.78,631.77,0.3165709]
[1739299376033,0.31606561,632.78,631.78,0.29053541]
[1739299376841,0.31606561,632.78,631.77,0.3165709]
[1739299380242,0.31606561,632.78,631.78,0.29058421]
[1739299380443,4.26475862,632.77,631.78,0.29058421]
[1739299380643,0.27552825,632.76,631.77,0.3165709]
[1739299380844,0.27552825,632.76,631.3,1.17224586]
[1739299380845,0.27552825,632.77,631.31,0.61077996]
[1739299381038,0.27552825,632.76,631.32,0.31679655]
[1739299381238,6.1113725,632.75,631.33,0.29066673]
[1739299381441,0.31606561,632.78,631.32,0.31679655]
[1739299381442,6.38690075,632.74,631.32,0.31679655]
[1739299381642,0.31609558,632.72,631.33,0.29066673]
[1739299381838,0.27552825,632.71,631.33,0.29066673]
[1739299382340,0.31610557,632.7,631.33,0.29066673]
[1739299382542,0.27552825,632.69,631.33,0.29066673]
[1739299382738,0.31611557,632.68,631.33,0.29066673]
[1739299385241,0.27537361,632.67,631.33,0.29066673]
[1739299385443,0.31612556,632.66,631.34,0.31678651]
[1739299385644,6.38674611,632.65,631.35,0.29066673]
[1739299385847,6.38674611,632.64,631.36,0.29066673]
[1739299386145,4.26460398,632.63,631.37,0.29066673]
[1739299386346,2.12214213,632.64,631.34,0.31678651]
[1739299386347,2.12214213,632.64,631.35,0.29066673]
[1739299386542,2.80541196,632.65,631.35,0.29066673]
[1739299387240,0.31613555,632.64,631.35,0.29066673]
[1739299387449,0.31613555,632.64,631.35,0.60744822]
[1739299387642,0.27540441,632.63,631.36,0.29066673]
[1739299387848,0.31613555,632.64,631.36,0.29066673]
[1739299388247,0.27539859,632.63,631.36,0.29066673]
[1739299388449,0.31613555,632.64,631.36,0.29066673]
[1739299389250,0.31613555,632.64,631.36,0.60744321]
[1739299389451,0.31613555,632.64,631.37,0.29066673]
[1739299392549,0.31613555,632.64,631.38,0.29066673]
[1739299392749,3.98923037,632.63,631.37,0.29066673]
[1739299392954,6.1113725,632.62,631.36,0.31677648]
[1739299393149,6.1113725,632.61,631.37,0.29066404]
[1739299393345,6.1113725,632.6,631.38,0.60743048]
[1739299393549,6.1113725,632.59,631.39,0.31676143]
[1739299393745,6.1113725,632.58,631.4,0.29066404]
[1739299393945,6.1113725,632.57,631.41,0.60741543]
[1739299394145,6.1113725,632.56,631.42,0.29066404]
[1739299394348,6.1113725,632.55,631.43,0.29066404]
[1739299394550,6.1113725,632.54,631.44,0.29066404]
[1739299394752,3.98923037,632.53,631.45,0.29066404]
[1739299394951,2.12214213,632.54,631.46,0.29066404]
[1739299395248,2.80541196,632.55,631.47,0.3167213]
[1739299395453,2.80541196,632.55,631.48,0.29060457]
[1739299395755,0.31613555,632.64,631.49,0.60731584]
[1739299396053,0.31613555,632.64,631.5,0.90142564]
[1739299396255,0.31613555,632.64,631.49,0.31671127]
[1739299396256,0.31613555,632.64,631.51,0.29060457]
[1739299396445,0.31613555,632.64,631.52,0.29060457]
[1739299396650,0.31613555,632.64,631.53,0.29060457]
[1739299396847,0.31613555,632.64,631.54,0.29060457]
[1739299397048,0.31613555,632.64,631.55,0.29060457]
[1739299397254,0.31613555,632.64,631.56,0.29060457]
[1739299397454,0.31613555,632.64,631.5,0.29060457]
[1739299397653,0.31613555,632.64,631.51,0.29060457]
[1739299397853,0.31613555,632.64,631.52,0.29060457]
[1739299398054,0.31613555,632.64,631.53,0.29060457]
[1739299398249,0.31613555,632.64,631.54,0.29060457]
[1739299398455,0.31613555,632.64,631.55,0.29060382]
[1739299398655,0.31613555,632.64,631.56,0.29060382]
[1739299398857,0.31613555,632.64,631.49,0.31671127]
[1739299398858,0.31613555,632.64,631.57,0.29060382]
[1739299399057,0.31613555,632.64,631.58,0.29060382]
[1739299399250,0.31613555,632.64,631.59,0.29060382]
[1739299399556,0.31613555,632.64,631.6,0.29060382]
[1739299399755,0.31613555,632.64,631.5,0.29060382]
[1739299399954,0.31613555,632.64,631.51,0.29060382]
[1739299400150,0.31613555,632.64,631.52,0.29060382]
[1739299400355,0.31613555,632.64,631.5,0.29060382]
[1739299400551,0.31613555,632.64,631.51,0.29060382]
[1739299400753,0.31613555,632.64,631.5,0.29060382]
[1739299400955,0.31613555,632.64,631.51,0.29060382]
[1739299401157,0.31613555,632.64,631.52,0.29060382]
[1739299401356,0.31613555,632.64,631.53,0.29060382]
[1739299401552,0.31613555,632.64,631.5,0.29060382]
[1739299401752,0.31613555,632.64,631.51,0.29060382]
[1739299401951,0.31613555,632.64,631.5,0.29060382]
[1739299402156,0.31613555,632.64,631.49,0.31671127]
[1739299402356,0.31613555,632.64,631.5,0.290604]
[1739299406556,0.31613555,632.64,631.51,0.31670123]
[1739299406753,0.31613555,632.64,631.52,0.290604]
[1739299406958,0.31613555,632.64,631.53,0.31669121]
[1739299407154,0.31613555,632.64,631.54,0.290604]
[1739299407359,0.31613555,632.64,631.55,0.31668118]
[1739299407561,0.31613555,632.64,631.56,0.290604]
[1739299407755,0.31613555,632.64,631.57,0.31667115]
[1739299407954,0.31613555,632.64,631.58,0.290604]
[1739299408660,0.31613555,632.64,631.59,0.31666112]
[1739299408862,0.31613555,632.64,631.6,0.290604]
[1739299409058,0.31613555,632.64,631.61,0.31665109]
[1739299409258,0.31613555,632.64,631.62,0.290604]
[1739299411261,0.31613555,632.64,631.63,0.29059508]
[1739299411462,0.31613555,632.64,631.62,0.29059508]
[1739299411757,0.31613555,632.64,631.63,0.29059508]
[1739299411961,0.31613555,632.64,631.62,0.29059508]
[1739299412162,0.31613555,632.64,631.63,0.29059508]
[1739299412461,0.31613555,632.64,631.64,0.29059508]
[1739299412855,0.31613555,632.64,631.61,0.31665109]
[1739299413061,0.31613555,632.64,631.62,0.29060707]
[1739299413655,0.31613555,632.64,631.29,1.17224586]
[1739299415059,0.31613555,632.64,631.3,0.29074663]
[1739299416061,0.31613555,632.64,631.31,0.29074663]
[1739299416261,0.31613555,632.64,630.99,0.29074663]
[1739299416459,0.31613555,632.64,631.0,0.31695721]
[1739299416860,0.31613555,632.64,631.01,0.29074677]
[1739299417060,0.31613555,632.64,631.02,0.31694716]
[1739299417260,0.31613555,632.64,631.03,0.29074677]
[1739299417461,0.31613555,632.64,631.04,0.31693711]
[1739299417762,0.31613555,632.64,631.05,0.29074677]
[1739299417962,0.27516112,632.63,631.06,0.31692707]
[1739299418265,0.31615055,632.61,631.07,0.29074677]
[1739299418564,0.27514907,632.6,631.08,0.2907877]
[1739299418761,0.31616554,632.58,631.07,0.2907877]
[1739299419059,0.31616554,632.58,631.06,0.31692707]
[1739299419060,0.27514907,632.57,631.08,0.2907877]
[1739299419265,0.31618053,632.55,631.07,0.2907877]
[1739299419563,0.27514907,632.54,631.07,0.2907877]
[1739299419767,0.31619553,632.52,631.07,0.2907877]
[1739299420364,0.31619553,632.52,631.08,0.29079502]
[1739299420558,0.31619553,632.52,631.07,0.29079502]
[1739299421166,0.27512132,632.51,631.07,0.29079502]
[1739299421360,0.31621053,632.49,631.07,0.29079502]
[1739299421665,0.27512132,632.48,631.07,0.29079502]
[1739299421964,0.31622553,632.46,631.07,0.29079502]
[1739299422164,0.27512132,632.45,631.07,0.29079502]
[1739299422364,0.31623553,632.44,631.07,0.29079502]
[1739299422967,0.2751251,632.43,631.07,0.29079502]
[1739299423172,0.31624553,632.42,631.07,0.29079502]
[1739299423874,0.31624553,632.42,631.06,0.31692707]
[1739299424073,0.31624553,632.42,631.07,0.29082363]
[1739299424872,0.27514192,632.41,631.07,0.29082363]
[1739299425573,0.31625553,632.4,631.06,0.31692707]
[1739299425776,0.27514726,632.39,631.07,0.2908322]
[1739299426074,0.31626553,632.38,631.07,0.2908322]
[1739299427275,0.31626553,632.38,631.06,0.31692707]
[1739299427476,0.31626553,632.38,631.07,0.29082829]
[1739299428474,0.27512208,632.37,631.07,0.29082829]
[1739299428674,0.31627553,632.36,631.07,0.29082829]
[1739299428879,0.27512637,632.35,631.07,0.29082829]
[1739299429079,0.31628554,632.34,631.07,0.29082829]
[1739299433381,0.27512442,632.33,631.07,0.29082829]
[1739299433580,0.31629554,632.32,631.07,0.29082829]
[1739299435180,0.31629554,632.32,631.08,0.29082829]
[1739299435384,0.31629554,632.32,631.09,0.29082829]
[1739299435789,4.2596677,632.31,631.1,0.29082829]
[1739299435981,0.31629554,632.32,631.06,0.31692707]
[1739299435982,4.2596677,632.3,631.11,0.29082829]
[1739299436186,3.98453119,632.29,631.11,0.29082829]
[1739299436388,4.30084674,632.28,631.06,0.31692707]
[1739299436589,4.25965899,632.27,631.07,0.29083703]
[1739299436788,4.25965899,632.26,631.08,0.29083703]
[1739299436989,3.98453119,632.25,631.07,0.29083703]
[1739299437187,3.98453119,632.27,631.07,0.29083703]
[1739299437383,0.27511837,632.26,631.08,0.29083703]
[1739299437590,0.31631555,632.28,631.07,0.29083703]
[1739299437788,0.31631555,632.28,631.06,0.31692707]
[1739299437983,0.31631555,632.28,631.07,0.29083703]
[1739299439891,0.31631555,632.28,631.08,0.2908492]
[1739299440091,0.31631555,632.28,631.09,0.29084396]
[1739299440289,0.31631555,632.28,631.1,0.29084396]
[1739299440588,0.31631555,632.28,631.11,0.29084396]
[1739299440786,0.31631555,632.28,631.07,0.29084396]
[1739299441087,0.31631555,632.28,631.08,0.29084396]
[1739299441287,6.38172639,632.27,631.07,0.29084396]
[1739299441493,6.42299888,632.26,631.06,0.31692707]
[1739299441687,6.69805871,632.25,631.07,0.29090246]
[1739299441893,6.42300888,632.24,631.07,0.29090246]
[1739299442092,6.10667332,632.23,631.07,0.29090246]
[1739299442292,4.57591534,632.22,631.07,0.29090246]
[1739299442495,4.30087676,632.22,631.07,0.29090246]
[1739299442688,0.31635057,632.21,631.07,0.29090246]
[1739299442894,0.27500422,632.2,631.07,0.29090246]
[1739299443296,0.31636058,632.19,631.07,0.29090246]
[1739299443497,0.27495881,632.18,631.06,0.31692707]
[1739299443695,0.31637059,632.17,631.07,0.29094454]
[1739299445895,0.31637059,632.17,631.06,0.31692707]
[1739299446400,0.27491502,632.16,630.57,0.61150192]
[1739299446600,0.3163806,632.15,630.58,0.31716832]
[1739299446800,0.27491502,632.14,630.58,0.31716832]
[1739299446999,0.31639061,632.13,630.58,0.31716832]
[1739299447304,0.31639061,632.13,630.59,0.29096752]
[1739299447602,0.27495992,632.12,630.6,0.60812578]
[1739299447904,0.31640563,632.1,630.61,1.21967336]
[1739299448103,0.27495992,632.09,630.62,0.29096752]
[1739299448297,0.31642064,632.07,630.63,0.29096752]
[1739299448603,0.27495992,632.06,630.63,0.61155261]
[1739299448798,0.31643066,632.05,630.61,0.31715323]
[1739299449001,0.274925,632.04,630.62,0.29101692]
[1739299449600,0.31644067,632.03,630.62,0.29101692]
[1739299450002,0.274925,632.02,630.62,0.29101692]
[1739299450203,0.31645068,632.01,630.62,0.29101692]
[1739299450404,0.274925,632.0,630.63,0.29101692]
[1739299450704,0.3164607,631.99,630.64,0.29101692]
[1739299450903,0.274925,631.98,630.65,0.29101692]
[1739299451107,0.31647071,631.97,630.66,0.29101692]
[1739299451304,0.274925,631.96,630.65,0.29101692]
[1739299451500,0.31648073,631.95,630.66,0.29101692]
[1739299451704,0.274925,631.94,630.62,0.29101692]
[1739299451899,0.31649075,631.93,630.67,0.29101692]
[1739299452099,0.31649075,631.93,630.61,0.31715323]
[1739299452100,0.31649075,631.93,630.68,0.29101692]
[1739299452304,0.31649075,631.93,630.64,0.29101692]
[1739299452503,0.31649075,631.93,630.65,0.29101692]
[1739299452703,0.31649075,631.93,630.65,0.31713311]
[1739299452900,0.31649075,631.93,630.66,0.60812571]
[1739299453103,0.31649075,631.93,630.67,0.60812068]
[1739299453305,0.27485995,631.92,630.67,0.31712305]
[1739299453608,0.31650076,631.91,630.68,0.29099763]
[1739299453906,0.27485995,631.9,630.68,0.29099763]
[1739299454405,0.31650076,631.91,630.67,0.31712305]
[1739299454605,0.27486735,631.9,630.68,0.29102514]
[1739299454806,0.31651078,631.89,630.68,0.29102514]
[1739299456007,0.27485544,631.88,630.68,0.29102514]
[1739299456211,0.27482811,631.87,630.69,0.29107343]
[1739299456508,0.27482811,631.86,630.7,0.29107343]
[1739299456806,0.31653082,631.85,630.71,0.29107343]
[1739299457003,0.31653082,631.85,630.68,0.29107343]